fUST/lending_fUST_20240224
["ID","MTS","AMOUNT","RATE_DAILY","PERIOD"]
[315048472,1708777834801,-500.0,0.00019178,2]
[315048473,1708777834810,-500.71875309,0.00019178,2]
[315048474,1708777834820,-500.0,0.00019178,2]
[315048475,1708777834829,-7944.66,0.00019178,2]
[315048476,1708777834838,-776.73,0.00019178,2]
[315048477,1708777834848,-500.0,0.00019178,2]
[315048478,1708777834857,-500.0,0.00019178,2]
[315048479,1708777834959,-500.0,0.00019178,2]
[315048480,1708777834968,-527.91606638,0.00019178,2]
[315048481,1708777834977,-501.06561376,0.00019178,2]
[315048482,1708777834986,-501.33966473,0.00019178,2]
[315048483,1708777834995,-584.1010211,0.00019178,2]
[315048484,1708777835005,-500.0,0.00019178,2]
[315048485,1708777835016,-159.39137304,0.00019178,2]
[315048486,1708777835026,-500.68125056,0.00019178,2]
[315048487,1708777835036,-567.53385106,0.00019178,2]
[315048488,1708777835045,-1062.94,0.00019178,2]
[315048489,1708777835055,-500.0,0.00019178,2]
[315048490,1708777835065,-501.42469485,0.00019178,2]
[315048491,1708777835075,-500.0,0.00019178,2]
[315048492,1708777835084,-500.62416126,0.00019178,2]
[315048493,1708777835094,-159.34763604,0.00019178,2]
[315048494,1708777835104,-503.02160777,0.00019178,2]
[315048495,1708777835114,-500.0,0.00019178,2]
[315048496,1708777835123,-431.56458462,0.00019178,2]
[315048497,1708777835133,-500.0,0.00019178,2]
[315048498,1708777835143,-500.76248699,0.00019178,2]
[315048499,1708777835152,-623.06,0.00019178,2]
[315048500,1708777835161,-501.43638075,0.00019178,2]
[315048501,1708777835171,-500.0,0.00019178,2]
[315048502,1708777835181,-500.62493587,0.00019178,2]
[315048503,1708777835191,-500.0,0.00019178,2]
[315048504,1708777835201,-580.53986321,0.00019178,2]
[315048505,1708777835210,-500.48727599,0.00019178,2]
[315048506,1708777835220,-500.0,0.00019178,2]
[315048507,1708777835229,-500.0,0.00019178,2]
[315048508,1708777835240,-500.0,0.00019178,2]
[315048509,1708777835249,-500.0,0.00019178,2]
[315048510,1708777835259,-502.04607468,0.00019178,2]
[315048511,1708777835269,-8724.34,0.00019178,2]
[315048512,1708777835279,-500.82736584,0.00019178,2]
[315048513,1708777835289,-404.94508815,0.00019178,2]
[315048514,1708777835298,-500.96270712,0.00019178,2]
[315048515,1708777835307,-500.0,0.00019178,2]
[315048516,1708777835318,-501.2673496,0.00019178,2]
[315048517,1708777835329,-848.0,0.00019178,2]
[315048518,1708777835338,-501.16619384,0.00019178,2]
[315048519,1708777835347,-5535.56,0.00019178,2]
[315048520,1708777835356,-500.72011047,0.00019178,2]
[315048521,1708777835366,-500.96874667,0.00019178,2]
[315048522,1708777835375,-501.20083192,0.00019178,2]
[315048523,1708777835385,-500.0,0.00019178,2]
[315048524,1708777835394,-500.0,0.00019178,2]
[315048525,1708777835403,-500.0,0.00019178,2]
[315048526,1708777835413,-500.0,0.00019178,2]
[315048527,1708777835422,-500.0,0.00019178,2]
[315048528,1708777835431,-500.0,0.00019178,2]
[315048529,1708777835441,-501.7384547,0.00019178,2]
[315048530,1708777835450,-500.0,0.00019178,2]
[315048531,1708777835459,-500.0,0.00019178,2]
[315048532,1708777835469,-503.51721299,0.00019178,2]
[315048533,1708777835478,-500.0,0.00019178,2]
[315048534,1708777835487,-450.86229606,0.00019178,2]
[315048535,1708777835496,-1985.16,0.00019178,2]
[315048536,1708777835505,-500.0,0.00019178,2]
[315048537,1708777835515,-500.57390746,0.00019178,2]
[315048538,1708777835524,-500.0,0.00019178,2]
[315048539,1708777835533,-500.0,0.00019178,2]
[315048540,1708777835542,-500.0,0.00019178,2]
[315048541,1708777835551,-891.96,0.00019178,2]
[315048542,1708777835560,-517.29081699,0.00019178,2]
[315048543,1708777835569,-500.0,0.00019178,2]
[315048544,1708777835579,-501.05453023,0.00019178,2]
[315048545,1708777835588,-1121.71,0.00019178,2]
[315048546,1708777835597,-500.0,0.00019178,2]
[315048547,1708777835606,-500.0,0.00019178,2]
[315048548,1708777835616,-502.19675901,0.00019178,2]
[315048549,1708777835625,-519.67231742,0.00019178,2]
[315048550,1708777835634,-500.64234869,0.00019178,2]
[315048551,1708777835643,-501.6938128,0.00019178,2]
[315048552,1708777835652,-171.80031986,0.00019178,2]
[315048553,1708777835661,-500.42992009,0.00019178,2]
[315048554,1708777835671,-502.0792975,0.00019178,2]
[315048555,1708777835681,-500.0,0.00019178,2]
[315048556,1708777835690,-3974.26,0.00019178,2]
[315048557,1708777835699,-500.0,0.00019178,2]
[315048558,1708777835708,-973.9,0.00019178,2]
[315048559,1708777835717,-500.0,0.00019178,2]
[315048560,1708777835727,-501.14736807,0.00019178,2]
[315048561,1708777835736,-1152.96,0.00019178,2]
[315048562,1708777835745,-500.0,0.00019178,2]
[315048563,1708777835754,-500.0,0.00019178,2]
[315048564,1708777835764,-4570.32,0.00019178,2]
[315048565,1708777835774,-500.13299627,0.00019178,2]
[315048566,1708777835784,-500.0,0.00019178,2]
[315048567,1708777835793,-166.666666,0.00019178,2]
[315048568,1708777835803,-443.62445114,0.00019215,2]
[315048569,1708777835812,-443.62445114,0.00019283,2]
[315048570,1708777835822,-153.0,0.000193,2]
[315048571,1708777835832,-200.5294442,0.000193,2]
[315048572,1708777835842,-200.5294442,0.000193,2]
[315048573,1708777835851,-153.0,0.000193,2]
[315048574,1708777835862,-200.5294442,0.000193,2]
[315048575,1708777835871,-200.5294442,0.000193,2]
[315048576,1708777835880,-443.62445114,0.00019351,2]
[315048577,1708777835890,-306.0,0.00019378,2]
[315048578,1708777835899,-500.0,0.00019421,2]
[315048579,1708777835908,-1302.15831049,0.00019426,2]
[315048580,1708777835918,-500.0,0.00019431,2]
[315048581,1708777835927,-500.0,0.00019431,2]
[315048582,1708777835936,-500.0,0.00019441,2]
[315048583,1708777835946,-500.0,0.00019441,2]
[315048584,1708777835956,-147030.80777864,0.0001945,2]
[315048585,1708777835967,-500.0,0.00019451,2]
[315048586,1708777835976,-500.0,0.00019452,2]
[315048587,1708777835986,-500.0,0.00019452,2]
[315048588,1708777835997,-508.24,0.00019452,2]
[315048589,1708777836006,-500.0,0.00019452,2]
[315048590,1708777836016,-191.23628942,0.00019452,2]
[315048591,1708777836025,-506.49,0.00019452,2]
[315048592,1708777836035,-500.0,0.00019452,2]
[315048593,1708777836044,-500.0,0.00019452,2]
[315048594,1708777836053,-500.0,0.00019452,2]
[315048595,1708777836063,-466.15790035,0.00019452,2]
[315048596,1708777836073,-500.0,0.00019452,2]
[315048597,1708777836082,-500.0,0.00019452,2]
[315048598,1708777836092,-500.0,0.00019452,2]
[315048599,1708777836101,-500.0,0.00019452,2]
[315048600,1708777836110,-500.0,0.00019452,2]
[315048601,1708777836119,-1409.84,0.00019452,2]
[315048602,1708777836128,-500.0,0.00019452,2]
[315048603,1708777836138,-501.08219983,0.00019452,2]
[315048604,1708777836148,-500.0,0.00019452,2]
[315048605,1708777836157,-500.0,0.00019452,2]
[315048606,1708777836166,-500.0,0.00019452,2]
[315048607,1708777836175,-289.03746674,0.00019452,2]
[315048608,1708777836185,-500.0,0.00019452,2]
[315048609,1708777836194,-639.13850757,0.00019452,2]
[315048610,1708777836203,-1134.58,0.00019452,2]
[315048611,1708777836212,-500.0,0.00019452,2]
[315048612,1708777836222,-500.0,0.00019452,2]
[315048613,1708777836233,-500.0,0.00019452,2]
[315048614,1708777836243,-500.0,0.00019452,2]
[315048615,1708777836252,-574.06,0.00019452,2]
[315048616,1708777836262,-500.0,0.00019452,2]
[315048617,1708777836271,-500.0,0.00019452,2]
[315048618,1708777836281,-1615.3,0.00019452,2]
[315048619,1708777836291,-786.72,0.00019452,2]
[315048620,1708777836301,-500.0,0.00019452,2]
[315048621,1708777836311,-1653.29,0.00019452,2]
[315048622,1708777836322,-1416.69,0.00019452,2]
[315048623,1708777836333,-646.60151528,0.00019452,2]
[315048624,1708777836342,-500.0,0.00019452,2]
[315048625,1708777836352,-1050.3,0.00019452,2]
[315048626,1708777836361,-166.66,0.00019452,2]
[315048627,1708777836371,-1054.8,0.00019452,2]
[315048628,1708777836380,-500.74753847,0.00019452,2]
[315048629,1708777836390,-835.93,0.00019452,2]
[315048630,1708777836400,-500.0,0.00019452,2]
[315048631,1708777836410,-500.0,0.00019452,2]
[315048632,1708777836419,-1418.45,0.00019452,2]
[315048633,1708777836429,-1627.86,0.00019452,2]
[315048634,1708777836438,-500.0,0.00019452,2]
[315048635,1708777836448,-7944.66,0.00019452,2]
[315048636,1708777836458,-776.73,0.00019452,2]
[315048637,1708777836467,-500.0,0.00019452,2]
[315048638,1708777836477,-500.0,0.00019452,2]
[315048639,1708777836488,-1062.94,0.00019452,2]
[315048640,1708777836498,-500.0,0.00019452,2]
[315048641,1708777836507,-500.0,0.00019452,2]
[315048642,1708777836517,-551.53581837,0.00019452,2]
[315048643,1708777836527,-623.06,0.00019452,2]
[315048644,1708777836536,-500.0,0.00019452,2]
[315048645,1708777836546,-500.0,0.00019452,2]
[315048646,1708777836556,-500.0,0.00019452,2]
[315048647,1708777836565,-500.0,0.00019452,2]
[315048648,1708777836575,-8724.34,0.00019452,2]
[315048649,1708777836585,-848.0,0.00019452,2]
[315048650,1708777836595,-5535.56,0.00019452,2]
[315048651,1708777836604,-500.0,0.00019452,2]
[315048652,1708777836613,-500.0,0.00019452,2]
[315048653,1708777836623,-500.0,0.00019452,2]
[315048654,1708777836632,-1985.16,0.00019452,2]
[315048655,1708777836641,-500.0,0.00019452,2]
[315048656,1708777836650,-362.09268378,0.00019452,2]
[315048657,1708777836660,-500.0,0.00019452,2]
[315048658,1708777836669,-891.96,0.00019452,2]
[315048659,1708777836678,-1121.71,0.00019452,2]
[315048660,1708777836688,-500.0,0.00019452,2]
[315048661,1708777836697,-500.0,0.00019452,2]
[315048662,1708777836706,-3974.26,0.00019452,2]
[315048663,1708777836715,-973.9,0.00019452,2]
[315048664,1708777836724,-1152.96,0.00019452,2]
[315048665,1708777836734,-500.9669518,0.00019452,2]
[315048666,1708777836743,-4570.32,0.00019452,2]
[315048667,1708777836752,-500.0,0.00019452,2]
[315048668,1708777836763,-153.0,0.00019452,2]
[315048669,1708777836771,-153.0,0.00019452,2]
[315048670,1708777836781,-1630.68869453,0.00019463,2]
[315048671,1708777836790,-154.53709997,0.00019463,2]
[315048672,1708777836800,-1630.68869453,0.00019466,2]
[315048673,1708777836809,-203.01862274,0.00019467,2]
[315048674,1708777836818,-4367.91409671,0.00019472,2]
[315048675,1708777836827,-203.01862274,0.00019477,2]
[315048676,1708777836837,-2351.05151054,0.00019477,2]
[315048677,1708777836846,-2351.05151054,0.0001948,2]
[315048678,1708777836855,-4367.91409671,0.00019484,2]
[315048679,1708777836865,-154.53709997,0.00019485,2]
[315048680,1708777836874,-1808.28545813,0.00019486,2]
[315048681,1708777836883,-4367.91409671,0.00019486,2]
[315048682,1708777836892,-2351.05151054,0.00019489,2]
[315048683,1708777836901,-203.01862274,0.00019492,2]
[315048684,1708777836911,-1808.28545813,0.00019496,2]
[315048685,1708777836920,-1630.68869453,0.00019496,2]
[315048686,1708777836930,-1808.28545813,0.00019497,2]
[315048687,1708777836939,-154.53709997,0.00019499,2]
[315048688,1708777836948,-3138.63257014,0.00019527,2]
[315048689,1708777836957,-276000.0,0.00019626,2]
[315048690,1708777836967,-166.666666,0.00019627,2]
[315048691,1708777836976,-153.0,0.00019652,2]
[315048692,1708777836985,-3295.09309048,0.000197,2]
[315048693,1708777836995,-3295.09309048,0.000197,2]
[315048694,1708777837004,-3295.09309048,0.000197,2]
[315048695,1708777837015,-1773.60026231,0.000197,2]
[315048696,1708777837024,-1773.60026231,0.000197,2]
[315048697,1708777837033,-1773.60026231,0.000197,2]
[315048698,1708777837042,-153.15439958,0.000197,2]
[315048699,1708777837051,-153.15439958,0.000197,2]
[315048700,1708777837060,-153.15439958,0.000197,2]
[315048701,1708777837070,-1230.16866427,0.000197,2]
[315048702,1708777837079,-1230.16866427,0.000197,2]
[315048703,1708777837088,-1230.16866427,0.000197,2]
[315048704,1708777837098,-1364.14517014,0.000197,2]
[315048705,1708777837107,-1364.14517014,0.000197,2]
[315048706,1708777837116,-1364.14517014,0.000197,2]
[315048707,1708777837126,-500.0,0.00019725,2]
[315048708,1708777837135,-500.0,0.00019725,2]
[315048709,1708777837145,-508.24,0.00019726,2]
[315048710,1708777837154,-500.0,0.00019726,2]
[315048711,1708777837163,-506.49,0.00019726,2]
[315048712,1708777837172,-500.0,0.00019726,2]
[315048713,1708777837182,-500.0,0.00019726,2]
[315048714,1708777837192,-500.0,0.00019726,2]
[315048715,1708777837201,-500.0,0.00019726,2]
[315048716,1708777837210,-500.0,0.00019726,2]
[315048717,1708777837220,-1409.84,0.00019726,2]
[315048718,1708777837232,-1134.58,0.00019726,2]
[315048719,1708777837243,-500.0,0.00019726,2]
[315048720,1708777837252,-500.0,0.00019726,2]
[315048721,1708777837262,-500.0,0.00019726,2]
[315048722,1708777837271,-574.06,0.00019726,2]
[315048723,1708777837280,-500.0,0.00019726,2]
[315048724,1708777837290,-590.39,0.00019726,2]
[315048725,1708777837388,-1615.3,0.00019726,2]
[315048726,1708777837404,-786.72,0.00019726,2]
[315048727,1708777837427,-500.0,0.00019726,2]
[315048728,1708777837448,-1653.29,0.00019726,2]
[315048729,1708777837470,-1416.69,0.00019726,2]
[315048730,1708777837492,-500.0,0.00019726,2]
[315048731,1708777837515,-1050.3,0.00019726,2]
[315048732,1708777837537,-1054.8,0.00019726,2]
[315048733,1708777837547,-835.93,0.00019726,2]
[315048734,1708777837556,-1418.45,0.00019726,2]
[315048735,1708777837565,-1627.86,0.00019726,2]
[315048736,1708777837575,-500.0,0.00019726,2]
[315048737,1708777837584,-7944.66,0.00019726,2]
[315048738,1708777837594,-776.73,0.00019726,2]
[315048739,1708777837603,-1062.94,0.00019726,2]
[315048740,1708777837612,-645.59341698,0.00019726,2]
[315048741,1708777837621,-623.06,0.00019726,2]
[315048742,1708777837630,-500.0,0.00019726,2]
[315048743,1708777837639,-499.09084534,0.00019726,2]
[315048744,1708777837648,-500.0,0.00019726,2]
[315048745,1708777837657,-500.0,0.00019726,2]
[315048746,1708777837666,-8724.34,0.00019726,2]
[315048747,1708777837675,-848.0,0.00019726,2]
[315048748,1708777837684,-5535.56,0.00019726,2]
[315048749,1708777837693,-500.0,0.00019726,2]
[315048750,1708777837703,-500.0,0.00019726,2]
[315048751,1708777837712,-1985.16,0.00019726,2]
[315048752,1708777837721,-502.78381319,0.00019726,2]
[315048753,1708777837729,-500.0,0.00019726,2]
[315048754,1708777837738,-891.96,0.00019726,2]
[315048755,1708777837747,-1121.71,0.00019726,2]
[315048757,1708777837757,-3974.26,0.00019726,2]
[315048759,1708777837767,-973.9,0.00019726,2]
[315048762,1708777837778,-1152.96,0.00019726,2]
[315048763,1708777837787,-4570.32,0.00019726,2]
[315048766,1708777837796,-500.0,0.00019899,2]
[315048769,1708777837805,-500.0,0.00019899,2]
[315048771,1708777837814,-500.0,0.00019899,2]
[315048773,1708777837824,-500.0,0.00019899,2]
[315048775,1708777837833,-200.5294442,0.000199,2]
[315048777,1708777837842,-153.0,0.000199,2]
[315048779,1708777837851,-200.5294442,0.000199,2]
[315048781,1708777837860,-257.0637228,0.00019998,2]
[315048783,1708777837869,-500.0,0.00019999,2]
[315048784,1708777837878,-173.80944232,0.00019999,2]
[315048786,1708777837888,-175.0,0.0002,2]
[315048788,1708777837898,-10946.0,0.0002,2]
[315048789,1708777837907,-155.0,0.0002,2]
[315048791,1708777837916,-169.69108004,0.0002,2]
[315048792,1708777837925,-151209.33375407,0.0002,2]
[315048800,1708777838064,-399.55349514,0.0002,2]
[315048801,1708777838076,-6397.53192647,0.0002,2]
[315048802,1708777838086,-618.09274011,0.0002,2]
[315048803,1708777838097,-4751.54910424,0.0002,2]
[315048804,1708777838108,-2561.08695129,0.0002,2]
[315048813,1708777838327,-500.0,0.00019726,2]
[315048815,1708777838337,-1971845.23258107,0.0002,2]
[315049062,1708777846254,-375.89421685,0.00019177,2]
[315049063,1708777846268,-919.02,0.00019178,2]
[315049064,1708777846281,-500.0,0.00019178,2]
[315049067,1708777846293,-492.65018362,0.00019178,2]
[315049068,1708777846333,-818.38981638,0.00019178,2]
[315049069,1708777846344,-919.02,0.00019452,2]
[315049070,1708777846356,-152.9,0.00019452,2]
[315049071,1708777846368,-578.09679302,0.00019452,2]
[315049072,1708777846382,-669.58428825,0.00019452,2]
[315049089,1708778623114,162.78742756,0.00018061,2]
[315049092,1708778758450,302.419865,0.0001766,2]
[315049093,1708778778805,4534.79270744,0.00018031,2]
[315049094,1708778778834,20251.33100006,0.00018031,2]
[315049139,1708779032427,-273.79961368,0.00018139,2]
[315049140,1708779032436,-480.42712636,0.00018139,2]
[315049141,1708779032448,-4217.36830488,0.00018139,2]
[315049142,1708779032457,-1300.19116831,0.0001814,2]
[315049143,1708779032466,-210.08306834,0.0001814,2]
[315049144,1708779032475,-664.21173515,0.000189,2]
[315049145,1708779032484,-179.98,0.00019068,3]
[315049146,1708779032494,-539.95,0.00019068,3]
[315049147,1708779032503,-350.0,0.00019077,2]
[315049148,1708779032512,-642.88492147,0.00019078,2]
[315049149,1708779032524,-686.19080936,0.00019078,2]
[315049150,1708779032536,-255.261822,0.00019078,2]
[315049151,1708779032548,-3926.36884672,0.00019078,2]
[315049202,1708779038372,-1718.4169057,0.00018138,2]
[315049203,1708779038382,-263388.54504075,0.00019078,2]
[315049204,1708779038392,-500.0,0.00019178,2]
[315049205,1708779038401,-507.46,0.00019178,2]
[315049206,1708779038411,-500.0,0.00019178,2]
[315049207,1708779038420,-502.3,0.00019178,2]
[315049208,1708779038430,-1233.61,0.00019178,2]
[315049210,1708779038440,-500.0,0.00019178,2]
[315049211,1708779038450,-992.76,0.00019178,2]
[315049212,1708779038459,-502.60660155,0.00019178,2]
[315049213,1708779038468,-500.0,0.00019178,2]
[315049214,1708779038478,-519.59807134,0.00019178,2]
[315049215,1708779038487,-510.83557812,0.00019178,2]
[315049216,1708779038497,-472.99836782,0.00019178,2]
[315049217,1708779038506,-500.0,0.00019178,2]
[315049218,1708779038515,-500.0,0.00019178,2]
[315049219,1708779038525,-500.0,0.00019178,2]
[315049220,1708779038534,-550.31784742,0.00019178,2]
[315049222,1708779038543,-500.0,0.00019178,2]
[315049224,1708779038554,-500.0,0.00019178,2]
[315049225,1708779038563,-1413.38,0.00019178,2]
[315049227,1708779038572,-500.0,0.00019178,2]
[315049228,1708779038581,-688.38,0.00019178,2]
[315049229,1708779038591,-501.63878304,0.00019178,2]
[315049230,1708779038600,-1446.63,0.00019178,2]
[315049231,1708779038609,-500.0,0.00019178,2]
[315049232,1708779038623,-525.45852184,0.00019178,2]
[315049233,1708779038632,-731.44,0.00019178,2]
[315049234,1708779038642,-827.43,0.00019178,2]
[315049235,1708779038651,-500.49581509,0.00019178,2]
[315049236,1708779038663,-922.95,0.00019178,2]
[315049237,1708779038673,-1424.37,0.00019178,2]
[315049238,1708779038682,-500.0,0.00019178,2]
[315049239,1708779038691,-500.0,0.00019178,2]
[315049240,1708779038701,-6951.57,0.00019178,2]
[315049241,1708779038711,-679.64,0.00019178,2]
[315049242,1708779038720,-930.08,0.00019178,2]
[315049243,1708779038729,-500.0,0.00019178,2]
[315049244,1708779038739,-500.0,0.00019178,2]
[315049245,1708779038749,-7715.27,0.00019178,2]
[315049246,1708779038758,-500.23580513,0.00019178,2]
[315049247,1708779038768,-545.18,0.00019178,2]
[315049248,1708779038778,-500.0,0.00019178,2]
[315049249,1708779038787,-500.0,0.00019178,2]
[315049250,1708779038797,-4843.61,0.00019178,2]
[315049251,1708779038806,-500.0,0.00019178,2]
[315049252,1708779038816,-500.60604706,0.00019178,2]
[315049253,1708779038825,-500.0,0.00019178,2]
[315049254,1708779038834,-496.85137534,0.00019178,2]
[315049255,1708779038843,-500.0,0.00019178,2]
[315049256,1708779038853,-1737.01,0.00019178,2]
[315049257,1708779038862,-780.46,0.00019178,2]
[315049258,1708779038872,-742.0,0.00019178,2]
[315049259,1708779038881,-500.0,0.00019178,2]
[315049260,1708779038891,-500.0,0.00019178,2]
[315049261,1708779038900,-3477.48,0.00019178,2]
[315049262,1708779038910,-500.0,0.00019178,2]
[315049263,1708779038919,-3999.03,0.00019178,2]
[315049264,1708779038929,-1008.84,0.00019178,2]
[315049265,1708779038938,-1236.42,0.00019178,2]
[315049266,1708779038948,-842.43,0.00019178,2]
[315049267,1708779038957,-1074.71,0.00019178,2]
[315049268,1708779038967,-500.0,0.00019178,2]
[315049269,1708779038976,-852.17,0.00019178,2]
[315049270,1708779038985,-166.666666,0.00019178,2]
[315049271,1708779038994,-787.72519876,0.0001945,2]
[315049272,1708779039004,-500.0,0.00019452,2]
[315049273,1708779039013,-500.0,0.00019452,2]
[315049274,1708779039022,-502.3,0.00019452,2]
[315049275,1708779039031,-1233.61,0.00019452,2]
[315049276,1708779039041,-206.32039873,0.00019452,2]
[315049277,1708779039050,-992.76,0.00019452,2]
[315049278,1708779039059,-500.0,0.00019452,2]
[315049279,1708779039069,-500.0,0.00019452,2]
[315049280,1708779039079,-500.0,0.00019452,2]
[315049281,1708779039088,-500.0,0.00019452,2]
[315049282,1708779039098,-1413.38,0.00019452,2]
[315049283,1708779039107,-500.0,0.00019452,2]
[315049284,1708779039117,-688.38,0.00019452,2]
[315049285,1708779039126,-1446.63,0.00019452,2]
[315049286,1708779039135,-731.44,0.00019452,2]
[315049287,1708779039144,-827.43,0.00019452,2]
[315049288,1708779039153,-922.95,0.00019452,2]
[315049289,1708779039163,-1424.37,0.00019452,2]
[315049290,1708779039172,-500.0,0.00019452,2]
[315049291,1708779039183,-6951.57,0.00019452,2]
[315049292,1708779039192,-679.64,0.00019452,2]
[315049293,1708779039202,-930.08,0.00019452,2]
[315049294,1708779039211,-500.0,0.00019452,2]
[315049295,1708779039220,-500.0,0.00019452,2]
[315049296,1708779039230,-7715.27,0.00019452,2]
[315049297,1708779039239,-545.18,0.00019452,2]
[315049298,1708779039249,-500.0,0.00019452,2]
[315049299,1708779039259,-500.0,0.00019452,2]
[315049300,1708779039268,-4843.61,0.00019452,2]
[315049301,1708779039277,-500.0,0.00019452,2]
[315049302,1708779039287,-500.0,0.00019452,2]
[315049303,1708779039297,-780.46,0.00019452,2]
[315049304,1708779039306,-1737.01,0.00019452,2]
[315049305,1708779039315,-742.0,0.00019452,2]
[315049306,1708779039325,-626.98735755,0.00019452,2]
[315049307,1708779039334,-500.0,0.00019452,2]
[315049308,1708779039345,-3477.48,0.00019452,2]
[315049309,1708779039355,-500.0,0.00019452,2]
[315049310,1708779039364,-3999.03,0.00019452,2]
[315049311,1708779039373,-1008.84,0.00019452,2]
[315049312,1708779039382,-1236.42,0.00019452,2]
[315049313,1708779039392,-842.43,0.00019452,2]
[315049314,1708779039401,-1074.71,0.00019452,2]
[315049315,1708779039411,-500.0,0.00019452,2]
[315049316,1708779039420,-852.17,0.00019452,2]
[315049317,1708779039429,-203.39733531,0.00019466,2]
[315049318,1708779039439,-1000.0,0.00019468,2]
[315049319,1708779039449,-997.95213574,0.00019553,2]
[315049320,1708779039458,-1000.0,0.00019587,2]
[315049321,1708779039468,-1000.0,0.00019612,2]
[315049322,1708779039477,-1000.0,0.00019618,2]
[315049323,1708779039487,-1000.0,0.00019624,2]
[315049324,1708779039496,-166.666666,0.00019627,2]
[315049325,1708779039505,-1005.06861351,0.00019629,2]
[315049326,1708779039515,-1000.0,0.00019642,2]
[315049327,1708779039524,-1000.0,0.00019663,2]
[315049328,1708779039534,-1000.0,0.00019675,2]
[315049329,1708779039543,-1000.0,0.00019682,2]
[315049330,1708779039553,-1000.0,0.00019693,2]
[315049331,1708779039563,-153.0,0.000197,2]
[315049332,1708779039572,-1000.0,0.000197,2]
[315049333,1708779039582,-500.0,0.00019726,2]
[315049334,1708779039592,-502.3,0.00019726,2]
[315049335,1708779039601,-1233.61,0.00019726,2]
[315049336,1708779039611,-992.76,0.00019726,2]
[315049337,1708779039625,-500.0,0.00019726,2]
[315049338,1708779039635,-500.0,0.00019726,2]
[315049339,1708779039648,-333.39371676,0.00019726,2]
[315049340,1708779039658,-1413.38,0.00019726,2]
[315049341,1708779039669,-688.38,0.00019726,2]
[315049342,1708779039679,-1446.63,0.00019726,2]
[315049343,1708779039688,-731.44,0.00019726,2]
[315049344,1708779039698,-827.43,0.00019726,2]
[315049345,1708779039708,-922.95,0.00019726,2]
[315049346,1708779039718,-1424.37,0.00019726,2]
[315049347,1708779039729,-500.0,0.00019726,2]
[315049348,1708779039739,-6951.57,0.00019726,2]
[315049349,1708779039750,-679.64,0.00019726,2]
[315049350,1708779039759,-930.08,0.00019726,2]
[315049351,1708779039770,-500.0,0.00019726,2]
[315049352,1708779039779,-500.0,0.00019726,2]
[315049353,1708779039790,-7715.27,0.00019726,2]
[315049354,1708779039799,-545.18,0.00019726,2]
[315049355,1708779039809,-500.0,0.00019726,2]
[315049356,1708779039818,-500.0,0.00019726,2]
[315049357,1708779039828,-4843.61,0.00019726,2]
[315049358,1708779039837,-500.0,0.00019726,2]
[315049359,1708779039846,-461.955112,0.00019726,2]
[315049360,1708779039855,-780.46,0.00019726,2]
[315049361,1708779039865,-1737.01,0.00019726,2]
[315049362,1708779039874,-742.0,0.00019726,2]
[315049363,1708779039883,-500.0,0.00019726,2]
[315049364,1708779039893,-3477.48,0.00019726,2]
[315049365,1708779039902,-500.0,0.00019726,2]
[315049366,1708779039911,-3999.03,0.00019726,2]
[315049367,1708779039920,-1008.84,0.00019726,2]
[315049368,1708779039929,-1236.42,0.00019726,2]
[315049369,1708779039939,-842.43,0.00019726,2]